bitfinex/quotes_BTCUSD_20250223
["timestamp","ask_amount","ask_price","bid_price","bid_amount"]
[1740308628039,0.0017004,96319.0,96318.0,1.13528693]
[1740308628240,0.0017004,96319.0,96318.0,1.12828693]
[1740308629328,0.0017004,96319.0,96318.0,1.12128693]
[1740308629531,0.0017004,96319.0,96318.0,1.12828693]
[1740308629739,0.0017004,96319.0,96318.0,1.13528693]
[1740308629942,0.0017004,96319.0,96318.0,1.12828693]
[1740308631310,0.0017004,96319.0,96318.0,1.13528693]
[1740308631469,0.0017004,96319.0,96318.0,1.12828693]
[1740308631665,0.0017004,96319.0,96318.0,1.12128693]
[1740308631895,0.0017004,96319.0,96318.0,1.12828693]
[1740308632101,0.0017004,96319.0,96318.0,1.13528693]
[1740308634441,0.0017002,96328.0,96319.0,0.16454085]
[1740308634688,0.0017002,96328.0,96327.0,0.10264569]
[1740308634897,0.0017002,96328.0,96327.0,0.10389111]
[1740308635928,0.0017002,96328.0,96327.0,0.11089111]
[1740308637579,0.0017002,96328.0,96327.0,0.11789111]
[1740308638248,0.0017002,96328.0,96327.0,0.12113948]
[1740308640253,0.0017002,96328.0,96327.0,0.86685858]
[1740308640454,0.0017002,96328.0,96327.0,0.87346548]
[1740308641473,0.0017002,96328.0,96327.0,0.89464617]
[1740308641858,0.0017002,96328.0,96327.0,0.8913978]
[1740308648175,0.0017002,96328.0,96327.0,0.89893865]
[1740308648513,0.0017002,96328.0,96327.0,0.90593865]
[1740308648719,0.0017002,96328.0,96327.0,0.89893865]
[1740308648923,0.0017002,96328.0,96327.0,0.90593865]
[1740308652189,0.0017002,96328.0,96327.0,0.51633865]
[1740308652339,0.00161649,96329.0,96327.0,0.51633865]
[1740308652545,0.00161649,96329.0,96328.0,0.13631022]
[1740308653544,0.00161649,96329.0,96328.0,0.13955862]
[1740308654853,0.00161649,96329.0,96328.0,0.14655862]
[1740308656274,0.00161649,96329.0,96328.0,0.15355862]
[1740308657413,0.00161649,96329.0,96328.0,0.13955862]
[1740308657834,0.00161649,96329.0,96328.0,0.15355862]
[1740308657964,0.00161649,96329.0,96328.0,0.47725862]
[1740308658161,0.00161649,96329.0,96328.0,0.46901319]
[1740308658485,0.00161649,96329.0,96328.0,0.47276479]
[1740308661313,0.00161649,96329.0,96328.0,0.49399746]
[1740308665438,0.00161649,96329.0,96328.0,0.48699746]
[1740308665644,0.00161649,96329.0,96328.0,0.47999746]
[1740308665846,0.00161649,96329.0,96328.0,0.48699746]
[1740308666263,0.00161649,96329.0,96328.0,0.49399746]
[1740308672160,0.00161649,96329.0,96328.0,0.49569786]
[1740308676107,0.00161649,96329.0,96328.0,0.48869786]
[1740308676899,0.00161649,96329.0,96328.0,0.49569786]
[1740308679763,0.00161649,96329.0,96328.0,0.48869786]
[1740308680006,0.00161649,96329.0,96328.0,0.49569786]
[1740308680517,0.00161649,96329.0,96328.0,0.48869786]
[1740308680811,0.00161649,96329.0,96328.0,0.49569786]
[1740308682450,0.00161649,96329.0,96328.0,0.48169786]
[1740308682619,0.00161649,96329.0,96328.0,0.48869786]
[1740308683629,0.00161649,96329.0,96328.0,0.50323871]
[1740308683856,0.00161649,96329.0,96328.0,0.51023871]
[1740308685366,0.00161649,96329.0,96328.0,0.51771871]
[1740308685945,0.00161649,96329.0,96328.0,0.51023871]
[1740308686294,0.00161649,96329.0,96328.0,0.51771871]
[1740308687614,0.00161649,96329.0,96328.0,0.90731871]
[1740308688914,0.00161649,96329.0,96328.0,0.91056698]
[1740308690183,0.01255932,96348.0,96329.0,0.01454085]
[1740308690388,0.0126445,96348.0,96345.0,0.01454085]
[1740308690589,0.0126445,96348.0,96347.0,0.01454085]
[1740308690905,0.0126445,96348.0,96347.0,0.11718654]
[1740308692039,0.0126445,96348.0,96347.0,0.12418654]
[1740308692438,0.0126445,96348.0,96347.0,0.13018654]
[1740308693604,0.0126445,96348.0,96347.0,0.45388654]
[1740308700347,0.0126445,96348.0,96347.0,0.47501953]
[1740308701733,0.0126445,96348.0,96347.0,0.46047868]
[1740308701939,0.0930445,96348.0,96347.0,0.46047868]
[1740308702306,0.14714976,96348.0,96347.0,0.46047868]
[1740308705493,0.14714976,96348.0,96347.0,0.13677868]
[1740308709929,0.06674976,96348.0,96347.0,0.13677868]
[1740308717107,0.14504976,96348.0,96347.0,0.23024078]
[1740308719591,0.14504976,96348.0,96347.0,0.13677868]
[1740308727358,0.06674976,96348.0,96347.0,0.13677868]
[1740308729833,0.02154976,96348.0,96347.0,0.13677868]
[1740308730192,0.01468216,96348.0,96347.0,0.13677868]
[1740308733475,0.0126445,96348.0,96347.0,0.13677868]
[1740308734108,0.01468216,96348.0,96347.0,0.13677868]
[1740308740638,0.00382464,96348.0,96347.0,0.13677868]
[1740308743156,0.00382464,96348.0,96347.0,0.13597868]
[1740308746308,0.00178698,96348.0,96347.0,0.13597868]
[1740308747058,0.00178698,96348.0,96347.0,0.14619664]
[1740308748369,0.00178698,96348.0,96347.0,0.13597868]
[1740308753072,0.00178698,96348.0,96347.0,0.13647868]
[1740308755139,0.00382464,96348.0,96347.0,0.13647868]
[1740308757652,0.01069155,96348.0,96347.0,0.13647868]
[1740308759633,0.01069155,96348.0,96347.0,0.22997439]
[1740308763777,0.01069155,96348.0,96347.0,0.23167439]
[1740308765327,0.01069155,96348.0,96347.0,0.13817868]
[1740308768644,0.00382464,96348.0,96347.0,0.13817868]
[1740308776795,0.00178698,96348.0,96347.0,0.13817868]
[1740308777195,0.00382464,96348.0,96347.0,0.13817868]
[1740308777399,0.00178698,96348.0,96347.0,0.13817868]
[1740308777803,0.00382464,96348.0,96347.0,0.13817868]
[1740308778005,0.00382464,96348.0,96347.0,0.21737868]
[1740308779342,0.00382464,96348.0,96347.0,0.13817868]
[1740308782407,0.00382464,96348.0,96347.0,0.23167439]
[1740308793322,0.00382464,96348.0,96347.0,0.13817868]
[1740308798755,0.00382464,96348.0,96347.0,0.13947868]
[1740308824088,0.00178698,96348.0,96347.0,0.21687868]
[1740308834800,0.00178698,96348.0,96347.0,0.13947868]
[1740308836403,0.00382464,96348.0,96347.0,0.13947868]
[1740308842520,0.00382464,96348.0,96347.0,0.03763299]
[1740308844898,0.00382464,96348.0,96347.0,0.14027868]
[1740308845095,0.00378312,96348.0,96347.0,0.14027868]
[1740308866982,0.00378312,96348.0,96347.0,0.11914569]
[1740308888977,0.00378312,96348.0,96347.0,0.13976704]
[1740308892868,0.00251067,96348.0,96347.0,0.13976704]
[1740308930369,0.00251067,96348.0,96347.0,0.30966275]
[1740308930581,0.00047301,96348.0,96347.0,0.30966275]
[1740308932945,0.00047301,96348.0,96347.0,0.21616704]
[1740308945993,0.00047301,96348.0,96347.0,0.22370789]
[1740308946531,0.00047301,96348.0,96347.0,0.23070789]
[1740308946947,0.00047301,96348.0,96347.0,0.22370789]
[1740308947097,0.00047301,96348.0,96347.0,0.23070789]
[1740308947439,0.00047301,96348.0,96347.0,0.22470789]
[1740308947643,0.00047301,96348.0,96347.0,0.23170789]
[1740308948149,0.00047301,96348.0,96347.0,0.23870789]
[1740308949094,0.00047301,96348.0,96347.0,0.56240789]
[1740308949732,0.00047301,96348.0,96347.0,0.55540789]
[1740308949932,0.00047301,96348.0,96347.0,0.56240789]
[1740308950857,0.00047301,96348.0,96347.0,0.54840789]
[1740308951101,0.00047301,96348.0,96347.0,0.55540789]
[1740308954407,0.00047301,96348.0,96347.0,0.60390789]
[1740308955400,0.00047301,96348.0,96347.0,0.59690789]
[1740308955846,0.00047301,96348.0,96347.0,0.60390789]
[1740308956228,0.00047301,96348.0,96347.0,0.59690789]
[1740308956380,0.00047301,96348.0,96347.0,0.58990789]
[1740308956583,0.00047301,96348.0,96347.0,0.59690789]
[1740308956803,0.00047301,96348.0,96347.0,0.60390789]
[1740308957026,0.00047301,96348.0,96347.0,0.58990789]
[1740308957227,0.00047301,96348.0,96347.0,0.59690789]
[1740308958331,0.00047301,96348.0,96347.0,0.60390789]
[1740308958933,0.00047301,96348.0,96347.0,0.59690789]
[1740308959143,0.00047301,96348.0,96347.0,0.60390789]
[1740308959501,0.00047301,96348.0,96347.0,0.59690789]
[1740308959741,0.00047301,96348.0,96347.0,0.60390789]
[1740308960565,0.00047301,96348.0,96347.0,0.59690789]
[1740308960766,0.00047301,96348.0,96347.0,0.60390789]
[1740308961755,0.00047301,96348.0,96347.0,0.59690789]
[1740308962195,0.00047301,96348.0,96347.0,0.60390789]
[1740308962676,0.00047301,96348.0,96347.0,0.59690789]
[1740308962906,0.00047301,96348.0,96347.0,0.60390789]
[1740308963147,0.00047301,96348.0,96347.0,0.59690789]
[1740308963371,0.00047301,96348.0,96347.0,0.60390789]
[1740308963774,0.00047301,96348.0,96347.0,0.59690789]
[1740308963996,0.00047301,96348.0,96347.0,0.60390789]
[1740308964901,0.00047301,96348.0,96347.0,0.63632908]
[1740308965746,0.00047301,96348.0,96347.0,0.62932908]
[1740308965948,0.00047301,96348.0,96347.0,0.63632908]
[1740308966108,0.00047301,96348.0,96347.0,0.62932908]
[1740308966308,0.00047301,96348.0,96347.0,0.63632908]
[1740308974139,0.00047301,96348.0,96347.0,0.62932908]
[1740308974632,0.00047301,96348.0,96347.0,0.63632908]
[1740308974906,0.00047301,96348.0,96347.0,0.62932908]
[1740308976047,0.00047301,96348.0,96347.0,0.78632908]
[1740308977114,0.00047301,96348.0,96347.0,0.79380908]
[1740308977331,0.00047301,96348.0,96347.0,0.73830908]
[1740308977472,0.00047301,96348.0,96347.0,0.49742908]
[1740308977700,0.00047301,96348.0,96347.0,0.50442908]
[1740308977897,0.00047301,96348.0,96347.0,0.49742908]
[1740308978100,0.00047301,96348.0,96347.0,0.50442908]
[1740308979598,0.00047301,96348.0,96347.0,0.49742908]
[1740308980229,0.00047301,96348.0,96347.0,0.50442908]
[1740308980592,0.00047301,96348.0,96347.0,0.51142908]
[1740308980998,0.00047301,96348.0,96347.0,0.51890908]
[1740308994138,0.00012343,96348.0,96347.0,0.51890908]
[1740308998167,0.00012343,96348.0,96347.0,0.51142908]
[1740308998380,0.00012343,96348.0,96347.0,0.51890908]
[1740308999128,0.00012343,96348.0,96347.0,0.51142908]
[1740308999329,0.00012343,96348.0,96347.0,0.51890908]
[1740309000094,0.00012343,96348.0,96347.0,0.51142908]
[1740309000272,0.00012343,96348.0,96347.0,0.51890908]
[1740309010751,0.00012343,96348.0,96347.0,0.51142908]
[1740309011058,0.00012343,96348.0,96347.0,0.51890908]
[1740309016969,0.00012343,96348.0,96347.0,0.51190908]
[1740309017107,0.00012343,96348.0,96347.0,0.50490908]
[1740309017314,0.00012343,96348.0,96347.0,0.51890908]
[1740309018783,0.00012343,96348.0,96347.0,0.66890908]
[1740309019099,0.00012343,96348.0,96347.0,0.74730908]
[1740309019846,0.00012343,96348.0,96347.0,0.74030908]
[1740309020058,0.00012343,96348.0,96347.0,0.74730908]
[1740309020615,0.00012343,96348.0,96347.0,0.74030908]
[1740309020998,0.00012343,96348.0,96347.0,0.74730908]
[1740309023110,0.00012343,96348.0,96347.0,0.66890908]
[1740309023937,0.00012343,96348.0,96347.0,0.66142908]
[1740309024141,0.00012343,96348.0,96347.0,0.66890908]
[1740309024938,0.00012343,96348.0,96347.0,0.66142908]
[1740309025236,0.00012343,96348.0,96347.0,0.66890908]
[1740309026002,0.00012343,96348.0,96347.0,0.74860908]
[1740309027098,0.00012343,96348.0,96347.0,0.66190908]
[1740309027319,0.00012343,96348.0,96347.0,0.66890908]
[1740309027559,0.00012343,96348.0,96347.0,0.66190908]
[1740309027925,0.00012343,96348.0,96347.0,0.66890908]
[1740309028631,0.00012343,96348.0,96347.0,0.66190908]
[1740309028864,0.00012343,96348.0,96347.0,0.66890908]
[1740309029350,0.00012343,96348.0,96347.0,0.66190908]
[1740309029561,0.00012343,96348.0,96347.0,0.66890908]
[1740309030347,0.00012343,96348.0,96347.0,0.66142908]
[1740309030572,0.00012343,96348.0,96347.0,0.66890908]
[1740309033504,0.00012343,96348.0,96347.0,0.66142908]
[1740309033705,0.00012343,96348.0,96347.0,0.66890908]
[1740309058385,0.04032343,96348.0,96347.0,0.66890908]
[1740309060326,0.04032343,96348.0,96347.0,0.51890908]
[1740309061442,0.04236109,96348.0,96347.0,0.49688823]
[1740309061662,0.16796109,96348.0,96347.0,0.46446704]
[1740309062013,0.17368761,96348.0,96347.0,0.46446704]
[1740309062637,0.17368761,96348.0,96347.0,0.45746704]
[1740309062988,0.17368761,96348.0,96347.0,0.45046704]
[1740309063177,0.17368761,96348.0,96347.0,0.45746704]
[1740309063956,0.17368761,96348.0,96347.0,0.46446704]
[1740309065116,0.17368761,96348.0,96347.0,0.14076704]
[1740309066556,0.09538761,96348.0,96347.0,0.14076704]
[1740309073605,0.09538761,96348.0,96347.0,0.13376704]
[1740309073937,0.09538761,96348.0,96347.0,0.14076704]
[1740309074742,0.09538761,96348.0,96347.0,0.13376704]
[1740309074956,0.09538761,96348.0,96347.0,0.14076704]
[1740309082486,0.04808761,96348.0,96347.0,0.14076704]
[1740309084321,0.04808761,96348.0,96347.0,0.13376704]
[1740309084511,0.04808761,96348.0,96347.0,0.12676704]
[1740309084706,0.04808761,96348.0,96347.0,0.14076704]
[1740309085218,0.04808761,96348.0,96347.0,0.12676704]
[1740309085529,0.04808761,96348.0,96347.0,0.14076704]
[1740309092051,0.04808761,96348.0,96347.0,0.13376704]
[1740309092253,0.04808761,96348.0,96347.0,0.12676704]
[1740309092447,0.04808761,96348.0,96347.0,0.13376704]
[1740309092651,0.04808761,96348.0,96347.0,0.14076704]
[1740309097406,0.04808761,96348.0,96347.0,0.17323704]
[1740309098535,0.04808761,96348.0,96347.0,0.14076704]
[1740309098902,0.04808761,96348.0,96347.0,0.17323767]
[1740309100052,0.04808761,96348.0,96347.0,0.14076704]
[1740309100700,0.04808761,96348.0,96347.0,0.17323799]
[1740309101465,0.04808761,96348.0,96347.0,0.14076704]
[1740309104835,0.04808761,96348.0,96347.0,0.17323763]
[1740309107444,0.04808761,96348.0,96347.0,0.14076704]
[1740309107641,0.04808761,96348.0,96347.0,0.13376704]
[1740309108089,0.04808761,96348.0,96347.0,0.14076704]
[1740309117788,0.04808761,96348.0,96347.0,0.14076704]
[1740309117993,0.04808761,96348.0,96347.0,0.14776704]
[1740309118503,0.04808761,96348.0,96347.0,0.14076704]
[1740309119854,0.04808761,96348.0,96347.0,0.14776704]
[1740309120646,0.04808761,96348.0,96347.0,0.18023109]
[1740309127379,0.04808761,96348.0,96347.0,0.14776704]
[1740309165109,0.04808761,96348.0,96347.0,0.18024235]
[1740309165319,0.04808761,96348.0,96347.0,0.14776704]
[1740309165489,0.04808761,96348.0,96347.0,0.18024222]
[1740309165875,0.04808761,96348.0,96347.0,0.14776704]
[1740309166099,0.04808761,96348.0,96347.0,0.14076704]
[1740309166294,0.04808761,96348.0,96347.0,0.13376704]
[1740309166694,0.04808761,96348.0,96347.0,0.14076704]
[1740309171027,0.04808761,96348.0,96347.0,0.13376704]
[1740309171472,0.04808761,96348.0,96347.0,0.12676704]
[1740309171633,0.04808761,96348.0,96347.0,0.13376704]
[1740309172408,0.04808761,96348.0,96347.0,0.14076704]
[1740309191772,0.04808761,96348.0,96347.0,0.13376704]
[1740309192016,0.04808761,96348.0,96347.0,0.14076704]
[1740309192339,0.04808761,96348.0,96347.0,0.13376704]
[1740309192544,0.04808761,96348.0,96347.0,0.14076704]
[1740309194681,0.04808761,96348.0,96347.0,0.13376704]
[1740309194896,0.04808761,96348.0,96347.0,0.14076704]
[1740309195487,0.04808761,96348.0,96347.0,0.13376704]
[1740309195711,0.04808761,96348.0,96347.0,0.14076704]
[1740309198620,0.04808761,96348.0,96347.0,0.17323769]
[1740309199004,0.04808761,96348.0,96347.0,0.14076704]
[1740309202043,0.04808761,96348.0,96347.0,0.1732387]
[1740309202753,0.04808761,96348.0,96347.0,0.14076704]
[1740309203323,0.04808761,96348.0,96347.0,0.17323858]
[1740309203866,0.04236109,96348.0,96347.0,0.17323858]
[1740309206249,0.04701853,96348.0,96347.0,0.17323858]
[1740309206864,0.04701853,96348.0,96347.0,0.14076704]
[1740309220384,0.04701853,96348.0,96347.0,0.12676704]
[1740309220722,0.04701853,96348.0,96347.0,0.13376704]
[1740309221604,0.04701853,96348.0,96347.0,0.14076704]
[1740309240508,0.04701853,96348.0,96347.0,0.14130789]
[1740309240713,0.04701853,96348.0,96347.0,0.14830789]
[1740309240911,0.04701853,96348.0,96347.0,0.15530789]
[1740309245069,0.04701853,96348.0,96347.0,0.14830789]
[1740309245229,0.04701853,96348.0,96347.0,0.15530789]
[1740309245993,0.04701853,96348.0,96347.0,0.14830789]
[1740309246197,0.04701853,96348.0,96347.0,0.15530789]
[1740309249465,0.04305853,96348.0,96347.0,0.15530789]
[1740309249671,0.03840109,96348.0,96347.0,0.14130789]
[1740309249860,0.03840109,96348.0,96347.0,0.14830789]
[1740309250062,0.03840109,96348.0,96347.0,0.15530789]
[1740309250198,0.00203766,96348.0,96347.0,0.15530789]
[1740309255482,0.03843766,96348.0,96347.0,0.15530789]
[1740309255887,0.04309513,96348.0,96347.0,0.15530789]
[1740309258032,0.04394533,96348.0,96347.0,0.15530789]
[1740309277029,0.03928786,96348.0,96347.0,0.15530789]
[1740309277283,0.04394563,96348.0,96347.0,0.15530789]
[1740309307492,0.04394563,96348.0,96347.0,0.14830789]
[1740309307712,0.04394563,96348.0,96347.0,0.14130789]
[1740309307910,0.04394563,96348.0,96347.0,0.14830789]
[1740309308069,0.04394563,96348.0,96347.0,0.15530789]
[1740309339856,0.04088808,96348.0,96347.0,0.15530789]
[1740309340778,0.00550797,96348.0,96347.0,0.15530789]
[1740309341221,0.0008502,96348.0,96347.0,0.15530789]
[1740309346098,0.0362502,96348.0,96347.0,0.15403661]
[1740309346232,0.04090673,96348.0,96347.0,0.15403661]
[1740309365544,0.04090673,96348.0,96347.0,0.15403661]
[1740309426733,0.04090673,96348.0,96347.0,0.14003661]
[1740309426926,0.04090673,96348.0,96347.0,0.14703661]
[1740309427130,0.04090673,96348.0,96347.0,0.15403661]
[1740309427848,0.04090673,96348.0,96347.0,0.1795104]
[1740309428010,0.04090673,96348.0,96347.0,0.14703661]
[1740309429038,0.04090673,96348.0,96347.0,0.14003661]
[1740309429257,0.04090673,96348.0,96347.0,0.14703661]
[1740309429747,0.04090673,96348.0,96347.0,0.14003661]
[1740309429971,0.04090673,96348.0,96347.0,0.14703661]
[1740309430460,0.04090673,96348.0,96347.0,0.15403661]
[1740309430678,0.04090673,96348.0,96347.0,0.14703661]
[1740309430967,0.04090673,96348.0,96347.0,0.15403661]
[1740309435510,0.04090673,96348.0,96347.0,0.14703661]
[1740309436115,0.04090673,96348.0,96347.0,0.14003661]
[1740309436522,0.04090673,96348.0,96347.0,0.14703661]
[1740309436943,0.04090673,96348.0,96347.0,0.14003661]
[1740309437381,0.04090673,96348.0,96347.0,0.14703661]
[1740309437583,0.04090673,96348.0,96347.0,0.15403661]
[1740309437910,0.04090673,96348.0,96347.0,0.14703661]
[1740309438317,0.04090673,96348.0,96347.0,0.15403661]
[1740309482652,0.04090673,96348.0,96347.0,0.11887441]
[1740309487436,0.04090673,96348.0,96347.0,0.15134299]
[1740309487654,0.04090673,96348.0,96347.0,0.11887441]
[1740309490970,0.04090673,96348.0,96347.0,0.15134223]
[1740309491961,0.04090673,96348.0,96347.0,0.14434223]
[1740309492204,0.04090673,96348.0,96347.0,0.13734223]
[1740309492394,0.04090673,96348.0,96347.0,0.11187441]
[1740309492718,0.04090673,96348.0,96347.0,0.11887441]
[1740309521679,0.04090673,96348.0,96347.0,0.35861526]
[1740309521803,0.04090673,96348.0,96347.0,0.39107089]
[1740309522017,0.0362502,96348.0,96347.0,0.39107089]
[1740309522450,0.0362502,96348.0,96347.0,0.70777089]
[1740309522622,0.0362502,96348.0,96347.0,0.70077089]
[1740309522857,0.0362502,96348.0,96347.0,0.71477089]
[1740309523206,0.0362502,96348.0,96347.0,0.70077089]
[1740309524850,0.0362502,96348.0,96347.0,0.70777089]
[1740309526194,0.0362502,96348.0,96347.0,0.71477089]
[1740309526714,0.0362502,96348.0,96347.0,0.76097089]
[1740309530555,0.03434204,96348.0,96347.0,0.76097089]
[1740309532360,0.0017018,96349.0,96348.0,0.16454085]
[1740309532651,0.00174496,96349.0,96348.0,1.54818283]
[1740309532850,0.00174496,96349.0,96348.0,1.54693764]
[1740309533030,0.00174496,96349.0,96348.0,1.55109564]
[1740309533631,0.00174496,96349.0,96348.0,1.55809564]
[1740309534491,0.00174496,96349.0,96348.0,1.56509564]
[1740309537253,0.00174496,96349.0,96348.0,1.88879564]
[1740309537755,0.03604496,96349.0,96348.0,1.88879564]
[1740309544007,0.03604496,96349.0,96348.0,1.88463764]
[1740309544160,0.03604496,96349.0,96348.0,1.89207764]
[1740309548111,0.03604496,96349.0,96348.0,1.89377804]
[1740309549386,0.03604496,96349.0,96348.0,1.88633804]
[1740309549608,0.03604496,96349.0,96348.0,1.89377804]
[1740309551744,0.03604496,96349.0,96348.0,1.97387804]
[1740309561718,0.03604496,96349.0,96348.0,1.96687804]
[1740309561922,0.03604496,96349.0,96348.0,2.00777804]
[1740309562328,0.03604496,96349.0,96348.0,2.01477804]
[1740309562669,0.03604496,96349.0,96348.0,0.97944257]
[1740309563030,0.03604496,96349.0,96348.0,0.97244257]
[1740309563416,0.03604496,96349.0,96348.0,0.98644257]
[1740309563619,0.03604496,96349.0,96348.0,0.97944257]
[1740309563952,0.03604496,96349.0,96348.0,0.97244257]
[1740309564371,0.03604496,96349.0,96348.0,0.97944257]
[1740309565603,0.03604496,96349.0,96348.0,0.98644257]
[1740309566000,0.001701,96351.0,96348.0,0.98644257]
[1740309566236,0.001701,96351.0,96350.0,0.26718654]
[1740309566435,0.001701,96351.0,96350.0,1.01294217]
[1740309567321,0.001701,96351.0,96350.0,1.09174217]
[1740309568446,0.001701,96351.0,96350.0,1.09874217]
[1740309568832,0.001701,96351.0,96350.0,1.10574217]
[1740309569773,0.001701,96351.0,96350.0,1.13692117]
[1740309572102,0.001701,96351.0,96350.0,1.12992117]
[1740309572351,0.001701,96351.0,96350.0,1.13692117]
[1740309572727,0.001701,96351.0,96350.0,1.15104893]
[1740309573107,0.001701,96351.0,96350.0,1.15804893]
[1740309580751,0.001701,96351.0,96350.0,1.37000893]
[1740309581782,0.001701,96351.0,96350.0,1.33882993]
[1740309584500,0.001701,96351.0,96350.0,2.37401361]
[1740309585794,0.001701,96351.0,96350.0,2.36001361]
[1740309585937,0.001701,96351.0,96350.0,2.36701361]
[1740309586273,0.001701,96351.0,96350.0,2.37401361]
[1740309586844,0.001701,96351.0,96350.0,2.36701361]
[1740309587338,0.001701,96351.0,96350.0,2.37401361]
[1740309596710,0.001701,96351.0,96350.0,1.33882993]
[1740309600680,0.001701,96351.0,96350.0,1.26002993]
[1740309601513,0.083201,96351.0,96350.0,1.26746993]
[1740309602218,0.083201,96351.0,96350.0,1.24592908]
[1740309602638,0.083201,96351.0,96350.0,1.25292908]
[1740309602983,0.083201,96351.0,96350.0,1.26746993]
[1740309605772,0.083201,96351.0,96350.0,0.87786993]
[1740309608373,0.083201,96351.0,96350.0,0.87086993]
[1740309609198,0.083201,96351.0,96350.0,0.86386993]
[1740309609393,0.083201,96351.0,96350.0,0.87086993]
[1740309610417,0.083201,96351.0,96350.0,0.87786993]
[1740309617757,0.001701,96351.0,96350.0,0.87786993]
[1740309618761,0.001701,96351.0,96350.0,0.86386993]
[1740309619176,0.001701,96351.0,96350.0,0.65890993]
[1740309620319,0.001701,96351.0,96350.0,0.66590993]
[1740309622140,0.001701,96351.0,96350.0,0.65846993]
[1740309622358,0.001701,96351.0,96350.0,0.66590993]
[1740309630042,0.001701,96351.0,96350.0,0.65846993]
[1740309630259,0.001701,96351.0,96350.0,0.66590993]
[1740309647458,0.001701,96351.0,96350.0,0.65846993]
[1740309647688,0.001701,96351.0,96350.0,0.61147345]
[1740309648467,0.001701,96351.0,96350.0,0.59747345]
[1740309648697,0.001701,96351.0,96350.0,0.60447345]
[1740309648922,0.001701,96351.0,96350.0,0.61147345]
[1740309649354,0.001701,96351.0,96350.0,0.60447345]
[1740309649487,0.001701,96351.0,96350.0,0.59747345]
[1740309649701,0.001701,96351.0,96350.0,0.60447345]
[1740309649910,0.001701,96351.0,96350.0,0.61147345]
[1740309651116,0.001701,96351.0,96350.0,0.60447345]
[1740309651339,0.001701,96351.0,96350.0,0.59747345]
[1740309651501,0.001701,96351.0,96350.0,0.61147345]
[1740309651701,0.001701,96351.0,96350.0,0.60447345]
[1740309652347,0.001701,96351.0,96350.0,0.61147345]
[1740309653086,0.001701,96351.0,96350.0,0.28777345]
[1740309660396,0.001701,96351.0,96350.0,0.26664569]
[1740309663372,0.001701,96351.0,96350.0,0.11664569]
[1740309663569,0.129401,96351.0,96350.0,0.11664569]
[1740309676625,0.051401,96351.0,96350.0,0.11664569]
[1740309692156,0.0017008,96355.0,96350.0,0.11664569]
[1740309693515,0.0017008,96355.0,96350.0,0.10964569]
[1740309693713,0.0017008,96355.0,96350.0,0.11664569]
[1740309693915,0.0017008,96355.0,96350.0,0.10964569]
[1740309694340,0.0017008,96355.0,96350.0,0.11664569]
[1740309694542,0.0017008,96355.0,96350.0,0.10964569]
[1740309694742,0.0017008,96355.0,96350.0,0.11664569]
[1740309695142,0.0017008,96355.0,96350.0,0.10264569]
[1740309695343,0.0017008,96355.0,96350.0,0.11664569]
[1740309696693,0.0017008,96355.0,96350.0,0.10964569]
[1740309697651,0.0017008,96355.0,96350.0,0.11664569]
[1740309701398,0.0017008,96355.0,96350.0,0.11834609]
[1740309707017,0.00043136,96355.0,96350.0,0.11834609]
[1740309749759,0.00043136,96355.0,96350.0,0.0157004]
[1740309750203,0.0824,96354.0,96350.0,0.0157004]
[1740309751131,0.0824,96354.0,96350.0,0.0087004]
[1740309751375,0.0824,96354.0,96350.0,0.0017004]
[1740309751574,0.0824,96354.0,96350.0,0.0157004]
[1740309757752,0.0824,96354.0,96350.0,0.0017004]
[1740309757987,0.0824,96354.0,96350.0,0.0087004]
[1740309758168,0.0824,96354.0,96350.0,0.0157004]
[1740309758775,0.0824,96354.0,96350.0,0.0087004]
[1740309759092,0.0824,96354.0,96350.0,0.0157004]
[1740309759699,0.0824,96354.0,96350.0,0.0087004]
[1740309760304,0.0824,96354.0,96350.0,0.0157004]
[1740309760516,0.0824,96354.0,96350.0,0.0087004]
[1740309761087,0.0824,96354.0,96350.0,0.0157004]
[1740309761256,0.0824,96354.0,96350.0,0.0087004]
[1740309761663,0.0824,96354.0,96350.0,0.0157004]
[1740309762103,0.0824,96354.0,96350.0,0.0227004]
[1740309763973,0.0824,96354.0,96350.0,0.0157004]
[1740309764170,0.0824,96354.0,96350.0,0.0087004]
[1740309764514,0.0824,96354.0,96350.0,0.0157004]
[1740309768126,0.0824,96354.0,96350.0,0.0017004]
[1740309768531,0.0824,96354.0,96350.0,0.0117004]
[1740309768958,0.0824,96354.0,96350.0,0.0067004]
[1740309769203,0.0824,96354.0,96350.0,0.0117004]
[1740309770099,0.0824,96354.0,96350.0,0.0067004]
[1740309770711,0.02284451,96353.0,96350.0,0.0077004]
[1740309771290,0.02284451,96353.0,96350.0,0.0017004]
[1740309771490,0.0782,96351.0,96350.0,0.0037004]
[1740309771772,0.12349686,96351.0,96350.0,0.0047004]
[1740309771981,0.12349686,96351.0,96350.0,0.0027004]
[1740309772195,0.12349686,96351.0,96350.0,0.0037004]
[1740309772415,0.12349686,96351.0,96350.0,0.0017004]
[1740309772558,0.10104451,96351.0,96350.0,0.0017004]
[1740309772769,0.0782,96351.0,96350.0,0.0047004]
[1740309774184,0.0782,96351.0,96350.0,0.002]
[1740309774386,0.0782,96351.0,96350.0,0.003]
[1740309774618,0.0782,96351.0,96350.0,0.001]
[1740309774797,0.0782,96351.0,96350.0,0.002]
[1740309775797,0.0782,96351.0,96350.0,0.001]
[1740309775998,0.0782,96351.0,96325.0,0.0782]
[1740309776179,0.0782,96351.0,96330.0,0.10264569]
[1740309777036,0.0782,96351.0,96350.0,0.001]
[1740309778360,0.0782,96351.0,96330.0,0.10364569]
[1740309778560,0.0782,96351.0,96350.0,0.001]
[1740309778824,0.0782,96351.0,96350.0,0.002]
[1740309780222,0.0782,96351.0,96350.0,0.001]
[1740309781903,0.0782,96351.0,96350.0,0.002]
[1740309783300,0.0782,96351.0,96350.0,0.0037002]
[1740309783507,0.0782,96351.0,96350.0,0.0027002]
[1740309783707,0.0782,96351.0,96350.0,0.0017002]
[1740309783967,0.4079,96351.0,96350.0,0.0037002]
[1740309785064,0.4079,96351.0,96350.0,0.0017002]
[1740309785346,0.4079,96351.0,96350.0,0.0037002]
[1740309785845,0.3297,96351.0,96350.0,0.0037002]
[1740309787072,0.3297,96351.0,96350.0,0.0027002]
[1740309787547,0.3297,96351.0,96350.0,0.0037002]
[1740309788575,0.3297,96351.0,96350.0,0.0027002]
[1740309789784,0.3297,96353.0,96350.0,0.0017002]
[1740309790170,0.3297,96353.0,96350.0,0.0027002]
[1740309790668,0.3297,96353.0,96350.0,0.0037002]
[1740309791021,0.3297,96353.0,96350.0,0.0027002]
[1740309791205,0.3297,96353.0,96350.0,0.0037002]
[1740309791405,0.3297,96353.0,96350.0,0.0027002]
[1740309796132,0.32495638,96353.0,96350.0,0.0027002]
[1740309801134,0.32495638,96353.0,96347.0,0.0017004]
[1740309803498,0.32495638,96353.0,96347.0,0.0027004]
[1740309814001,0.0064913,96352.0,96347.0,0.0027004]
[1740309815061,0.00447784,96352.0,96347.0,0.0027004]